[Event "Titled Tuesday Blitz August 22 Early 2023"]
[White "Wang, Alexander J"]
[Black "Hartikainen, Jarmo"]
[WhiteFideId "30955270"]
[BlackFideId "503134"]
[WhiteElo "2283"]
[BlackElo "2101"]
[Result "1-0"]
[Round "7"]
[TimeControl "180+1"]
[Date "2023.08.22"]
[WhiteClock "0:00:47"]
[BlackClock "0:00:08"]
[Board "202"]

1. e4 {[%clk 0:03:00]}  c5 {[%clk 0:02:59]} 2. Nf3 {[%clk 0:02:58]}  Nc6 {[%clk 0:02:59]} 3. d4 {[%clk 0:02:57]}  cxd4 {[%clk 0:02:59]} 4. Nxd4 {[%clk 0:02:58]}  Nf6 {[%clk 0:03:00]} 5. Nc3 {[%clk 0:02:58]}  d6 {[%clk 0:03:00]} 6. g3 {[%clk 0:02:54]}  Bd7 {[%clk 0:02:38]} 7. Bg2 {[%clk 0:02:34]}  g6 {[%clk 0:02:37]} 8. O-O {[%clk 0:02:33]}  Bg7 {[%clk 0:02:37]} 9. h3 {[%clk 0:02:33]}  O-O {[%clk 0:02:36]} 10. Be3 {[%clk 0:02:31]}  a6 {[%clk 0:02:23]} 11. a4 {[%clk 0:02:30]}  Rc8 {[%clk 0:02:22]} 12. f4 {[%clk 0:02:21]}  e5 {[%clk 0:02:05]} 13. Nde2 {[%clk 0:02:06]}  Na5 {[%clk 0:01:49]} 14. b3 {[%clk 0:02:02]}  b5 {[%clk 0:01:48]} 15. axb5 {[%clk 0:01:59]}  axb5 {[%clk 0:01:48]} 16. Qxd6 {[%clk 0:01:52]}  Rc6 {[%clk 0:01:19]} 17. Qd2 {[%clk 0:01:46]}  Qc8 {[%clk 0:01:12]} 18. fxe5 {[%clk 0:01:41]}  Nh5 {[%clk 0:01:08]} 19. Rxa5 {[%clk 0:01:37]}  Bxe5 {[%clk 0:01:08]} 20. Nd5 {[%clk 0:01:37]}  Re8 {[%clk 0:01:02]} 21. Nd4 {[%clk 0:01:30]}  Bxd4 {[%clk 0:00:44]} 22. Bxd4 {[%clk 0:01:29]}  Rxc2 {[%clk 0:00:44]} 23. Qh6 {[%clk 0:01:21]}  Rxg2+ {[%clk 0:00:26]} 24. Kxg2 {[%clk 0:01:18]}  Bxh3+ {[%clk 0:00:25]} 25. Kg1 {[%clk 0:01:01]}  Bxf1 {[%clk 0:00:19]} 26. Nf6+ {[%clk 0:00:59]}  Nxf6 {[%clk 0:00:17]} 27. Bxf6 {[%clk 0:00:59]}  Qc5+ {[%clk 0:00:17]} 28. Kxf1 {[%clk 0:00:47]}  Qf5+ {[%clk 0:00:08]} 29. exf5 {[%clk 0:00:47]} 1-0


[Site "https://www.chess.com"]

[Event "Titled Tuesday Blitz August 22 Early 2023"]
[White "Skiadopoulos, Nikolaos"]
[Black "Simonovic, Miroslav"]
[WhiteFideId "4200772"]
[BlackFideId "919152"]
[WhiteElo "1812"]
[BlackElo "2258"]
[Result "1/2-1/2"]
[Round "7"]
[TimeControl "180+1"]
[Date "2023.08.22"]
[WhiteClock "0:00:16"]
[BlackClock "0:00:41"]
[Board "205"]

1. e4 {[%clk 0:02:42]}  c5 {[%clk 0:03:00]} 2. b4 {[%clk 0:02:40]}  b6 {[%clk 0:02:59]} 3. bxc5 {[%clk 0:02:40]}  bxc5 {[%clk 0:03:00]} 4. Nc3 {[%clk 0:02:39]}  Bb7 {[%clk 0:03:00]} 5. Rb1 {[%clk 0:02:39]}  Bc6 {[%clk 0:03:00]} 6. Nf3 {[%clk 0:02:39]}  g6 {[%clk 0:03:00]} 7. Ne5 {[%clk 0:02:38]}  Bg7 {[%clk 0:03:00]} 8. Nxc6 {[%clk 0:02:38]}  Nxc6 {[%clk 0:03:01]} 9. Bb2 {[%clk 0:02:29]}  e5 {[%clk 0:03:00]} 10. Nd5 {[%clk 0:02:28]}  Nge7 {[%clk 0:03:00]} 11. Bb5 {[%clk 0:02:02]}  O-O {[%clk 0:03:00]} 12. O-O {[%clk 0:01:58]}  a6 {[%clk 0:02:52]} 13. Nxe7+ {[%clk 0:01:50]}  Nxe7 {[%clk 0:02:52]} 14. Bc4 {[%clk 0:01:49]}  d5 {[%clk 0:02:50]} 15. exd5 {[%clk 0:01:48]}  Nxd5 {[%clk 0:02:51]} 16. Qf3 {[%clk 0:01:46]}  Nb4 {[%clk 0:02:45]} 17. c3 {[%clk 0:01:38]}  Qxd2 {[%clk 0:02:31]} 18. cxb4 {[%clk 0:01:35]}  Qxb4 {[%clk 0:02:23]} 19. Bxf7+ {[%clk 0:01:25]}  Kh8 {[%clk 0:02:12]} 20. Bxe5 {[%clk 0:01:22]}  Qh4 {[%clk 0:01:39]} 21. Qd5 {[%clk 0:01:04]}  Rad8 {[%clk 0:01:32]} 22. Bxg7+ {[%clk 0:00:59]}  Kxg7 {[%clk 0:01:33]} 23. Qe5+ {[%clk 0:00:48]}  Qf6 {[%clk 0:01:18]} 24. Qxf6+ {[%clk 0:00:45]}  Kxf6 {[%clk 0:01:19]} 25. Bc4 {[%clk 0:00:44]}  Rd6 {[%clk 0:01:19]} 26. Rb7 {[%clk 0:00:41]}  h5 {[%clk 0:01:18]} 27. h4 {[%clk 0:00:41]}  Ke5 {[%clk 0:01:02]} 28. Re1+ {[%clk 0:00:38]}  Kf4 {[%clk 0:01:01]} 29. Rf7+ {[%clk 0:00:35]}  Rxf7 {[%clk 0:01:01]} 30. Bxf7 {[%clk 0:00:35]}  Kf5 {[%clk 0:00:57]} 31. g3 {[%clk 0:00:34]}  Kf6 {[%clk 0:00:56]} 32. Bc4 {[%clk 0:00:33]}  Rb6 {[%clk 0:00:53]} 33. Kg2 {[%clk 0:00:30]}  a5 {[%clk 0:00:53]} 34. Kf3 {[%clk 0:00:26]}  Rb4 {[%clk 0:00:53]} 35. Rc1 {[%clk 0:00:25]}  Rb2 {[%clk 0:00:50]} 36. Bb3 {[%clk 0:00:23]}  a4 {[%clk 0:00:48]} 37. Bxa4 {[%clk 0:00:22]}  Rxa2 {[%clk 0:00:49]} 38. Bb3 {[%clk 0:00:22]}  Ra3 {[%clk 0:00:48]} 39. Rc3 {[%clk 0:00:21]}  c4 {[%clk 0:00:43]} 40. Rxc4 {[%clk 0:00:21]}  Rxb3+ {[%clk 0:00:43]} 41. Kf4 {[%clk 0:00:22]}  Rb6 {[%clk 0:00:42]} 42. f3 {[%clk 0:00:21]}  Rd6 {[%clk 0:00:42]} 43. g4 {[%clk 0:00:21]}  hxg4 {[%clk 0:00:41]} 44. fxg4 {[%clk 0:00:22]}  Ra6 {[%clk 0:00:41]} 45. g5+ {[%clk 0:00:19]}  Ke6 {[%clk 0:00:41]} 46. Rb4 {[%clk 0:00:19]}  Rd6 {[%clk 0:00:40]} 47. Kg4 {[%clk 0:00:19]}  Rc6 {[%clk 0:00:40]} 48. h5 {[%clk 0:00:19]}  gxh5+ {[%clk 0:00:39]} 49. Kxh5 {[%clk 0:00:19]}  Kf7 {[%clk 0:00:39]} 50. Rb7+ {[%clk 0:00:17]}  Kg8 {[%clk 0:00:39]} 51. g6 {[%clk 0:00:16]}  Rc1 {[%clk 0:00:39]} 52. Kh6 {[%clk 0:00:16]}  Rh1+ {[%clk 0:00:39]} 53. Kg5 {[%clk 0:00:16]}  Rg1+ {[%clk 0:00:40]} 54. Kh6 {[%clk 0:00:16]}  Rh1+ {[%clk 0:00:40]} 55. Kg5 {[%clk 0:00:16]}  Rg1+ {[%clk 0:00:40]} 56. Kh6 {[%clk 0:00:16]}  Rh1+ {[%clk 0:00:41]} 1/2-1/2


[Site "https://www.chess.com"]

[Event "Titled Tuesday Blitz August 22 Early 2023"]
[White "Gyulamiryan-koryun"]
[Black "Sericano, Claudio"]
[BlackFideId "800473"]
[WhiteElo "2030"]
[BlackElo "2054"]
[Result "1/2-1/2"]
[Round "7"]
[TimeControl "180+1"]
[Date "2023.08.22"]
[WhiteClock "0:00:05"]
[BlackClock "0:00:08"]
[Board "207"]

1. c4 {[%clk 0:02:59]}  e6 {[%clk 0:02:49]} 2. Nc3 {[%clk 0:02:58]}  d5 {[%clk 0:02:49]} 3. cxd5 {[%clk 0:02:57]}  exd5 {[%clk 0:02:50]} 4. d4 {[%clk 0:02:56]}  Nf6 {[%clk 0:02:51]} 5. Bg5 {[%clk 0:02:53]}  Be7 {[%clk 0:02:50]} 6. e3 {[%clk 0:02:52]}  O-O {[%clk 0:02:49]} 7. Bd3 {[%clk 0:02:51]}  c6 {[%clk 0:02:50]} 8. Qc2 {[%clk 0:02:51]}  Nbd7 {[%clk 0:02:50]} 9. Nge2 {[%clk 0:02:50]}  Re8 {[%clk 0:02:50]} 10. O-O {[%clk 0:02:50]}  Nf8 {[%clk 0:02:49]} 11. Rae1 {[%clk 0:02:49]}  Ne4 {[%clk 0:02:43]} 12. Bf4 {[%clk 0:02:40]}  g5 {[%clk 0:02:26]} 13. Bg3 {[%clk 0:02:36]}  Nxg3 {[%clk 0:02:20]} 14. Nxg3 {[%clk 0:02:35]}  Bd6 {[%clk 0:02:10]} 15. e4 {[%clk 0:02:21]}  Bxg3 {[%clk 0:01:58]} 16. hxg3 {[%clk 0:02:17]}  dxe4 {[%clk 0:01:58]} 17. Nxe4 {[%clk 0:02:13]}  Ng6 {[%clk 0:01:50]} 18. Qd2 {[%clk 0:01:56]}  Bf5 {[%clk 0:01:28]} 19. Qc3 {[%clk 0:01:06]}  Bxe4 {[%clk 0:01:11]} 20. Bxe4 {[%clk 0:01:04]}  Qd6 {[%clk 0:01:10]} 21. Qb3 {[%clk 0:00:46]}  b6 {[%clk 0:00:47]} 22. Qc4 {[%clk 0:00:34]}  Rac8 {[%clk 0:00:34]} 23. Bf5 {[%clk 0:00:30]}  Rcd8 {[%clk 0:00:31]} 24. Rd1 {[%clk 0:00:25]}  Qd5 {[%clk 0:00:26]} 25. Qc2 {[%clk 0:00:23]}  Rd6 {[%clk 0:00:23]} 26. f3 {[%clk 0:00:20]}  Kg7 {[%clk 0:00:19]} 27. Be4 {[%clk 0:00:20]}  Qe6 {[%clk 0:00:18]} 28. Qc3 {[%clk 0:00:19]}  Qf6 {[%clk 0:00:17]} 29. Kh2 {[%clk 0:00:17]}  Red8 {[%clk 0:00:18]} 30. Rd3 {[%clk 0:00:08]}  Rxd4 {[%clk 0:00:16]} 31. Rxd4 {[%clk 0:00:08]}  Rxd4 {[%clk 0:00:16]} 32. Qxc6 {[%clk 0:00:07]}  Qxc6 {[%clk 0:00:17]} 33. Bxc6 {[%clk 0:00:08]}  Rd2 {[%clk 0:00:17]} 34. Rb1 {[%clk 0:00:06]}  Ne5 {[%clk 0:00:17]} 35. Be4 {[%clk 0:00:05]}  Nc4 {[%clk 0:00:14]} 36. b3 {[%clk 0:00:05]}  Nd6 {[%clk 0:00:12]} 37. Bc6 {[%clk 0:00:04]}  Rxa2 {[%clk 0:00:11]} 38. g4 {[%clk 0:00:04]}  Rc2 {[%clk 0:00:10]} 39. Bd5 {[%clk 0:00:03]}  Rd2 {[%clk 0:00:09]} 40. Bc6 {[%clk 0:00:03]}  a5 {[%clk 0:00:06]} 41. b4 {[%clk 0:00:03]}  axb4 {[%clk 0:00:05]} 42. Rxb4 {[%clk 0:00:04]}  b5 {[%clk 0:00:04]} 43. Bxb5 {[%clk 0:00:04]}  Nxb5 {[%clk 0:00:05]} 44. Rxb5 {[%clk 0:00:04]}  f6 {[%clk 0:00:05]} 45. Rf5 {[%clk 0:00:05]}  Kg6 {[%clk 0:00:06]} 46. Kg3 {[%clk 0:00:06]}  Rd3 {[%clk 0:00:06]} 47. Rb5 {[%clk 0:00:06]}  Rd4 {[%clk 0:00:07]} 48. Kf2 {[%clk 0:00:06]}  Rd2+ {[%clk 0:00:07]} 49. Kg3 {[%clk 0:00:06]}  Rd6 {[%clk 0:00:07]} 50. Kf2 {[%clk 0:00:07]}  Re6 {[%clk 0:00:07]} 51. Kg3 {[%clk 0:00:07]}  Re7 {[%clk 0:00:07]} 52. Kf2 {[%clk 0:00:07]}  Rd7 {[%clk 0:00:07]} 53. Kg3 {[%clk 0:00:08]}  Ra7 {[%clk 0:00:08]} 54. Kf2 {[%clk 0:00:08]}  Ra3 {[%clk 0:00:08]} 55. Kg3 {[%clk 0:00:08]}  Ra2 {[%clk 0:00:09]} 56. Kh2 {[%clk 0:00:08]}  h6 {[%clk 0:00:08]} 57. Kg3 {[%clk 0:00:08]}  h5 {[%clk 0:00:08]} 58. gxh5+ {[%clk 0:00:08]}  Kxh5 {[%clk 0:00:09]} 59. Rf5 {[%clk 0:00:07]}  Kg6 {[%clk 0:00:09]} 60. Rb5 {[%clk 0:00:08]}  f5 {[%clk 0:00:10]} 61. Kh2 {[%clk 0:00:08]}  Kh5 {[%clk 0:00:09]} 62. Kg1 {[%clk 0:00:07]}  Kg6 {[%clk 0:00:06]} 63. Kh2 {[%clk 0:00:07]}  f4 {[%clk 0:00:05]} 64. Kg1 {[%clk 0:00:06]}  Kh5 {[%clk 0:00:06]} 65. Kf1 {[%clk 0:00:05]}  Ra1+ {[%clk 0:00:03]} 66. Kf2 {[%clk 0:00:05]}  Kh4 {[%clk 0:00:04]} 67. Rc5 {[%clk 0:00:05]}  Ra2+ {[%clk 0:00:04]} 68. Kf1 {[%clk 0:00:05]}  g4 {[%clk 0:00:04]} 69. fxg4 {[%clk 0:00:04]}  Kg3 {[%clk 0:00:04]} 70. Rc3+ {[%clk 0:00:04]}  Kxg4 {[%clk 0:00:03]} 71. Rf3 {[%clk 0:00:04]}  Ra1+ {[%clk 0:00:03]} 72. Kf2 {[%clk 0:00:04]}  Ra2+ {[%clk 0:00:04]} 73. Kf1 {[%clk 0:00:05]}  Rd2 {[%clk 0:00:05]} 74. Rb3 {[%clk 0:00:04]}  Rd4 {[%clk 0:00:05]} 75. Rf3 {[%clk 0:00:04]}  Re4 {[%clk 0:00:06]} 76. Rb3 {[%clk 0:00:04]}  Rd4 {[%clk 0:00:06]} 77. Rf3 {[%clk 0:00:04]}  Ra4 {[%clk 0:00:06]} 78. Rb3 {[%clk 0:00:04]}  Rc4 {[%clk 0:00:06]} 79. Rf3 {[%clk 0:00:05]}  Rb4 {[%clk 0:00:06]} 80. Rc3 {[%clk 0:00:05]}  Rb2 {[%clk 0:00:06]} 81. Kg1 {[%clk 0:00:05]}  Re2 {[%clk 0:00:04]} 82. Kf1 {[%clk 0:00:05]}  Re4 {[%clk 0:00:03]} 83. Kg1 {[%clk 0:00:03]}  Re2 {[%clk 0:00:02]} 84. Kf1 {[%clk 0:00:04]}  Re5 {[%clk 0:00:03]} 85. Kg1 {[%clk 0:00:04]}  Re3 {[%clk 0:00:04]} 86. Rc8 {[%clk 0:00:03]}  Re1+ {[%clk 0:00:03]} 87. Kf2 {[%clk 0:00:03]}  Re5 {[%clk 0:00:04]} 88. Rg8+ {[%clk 0:00:03]}  Rg5 {[%clk 0:00:05]} 89. Rxg5+ {[%clk 0:00:03]}  Kxg5 {[%clk 0:00:06]} 90. Kf3 {[%clk 0:00:04]}  Kf5 {[%clk 0:00:07]} 91. g3 {[%clk 0:00:04]}  fxg3 {[%clk 0:00:08]} 92. Kxg3 {[%clk 0:00:05]} 1/2-1/2


[Site "https://www.chess.com"]

[Event "Titled Tuesday Blitz August 22 Early 2023"]
[White "Johnson, Ben"]
[Black "Vargas, Mauricio"]
[WhiteFideId "2010917"]
[BlackFideId "4404572"]
[WhiteElo "2122"]
[BlackElo "1860"]
[Result "1-0"]
[Round "7"]
[TimeControl "180+1"]
[Date "2023.08.22"]
[WhiteClock "0:01:42"]
[BlackClock "0:00:00"]
[Board "210"]

1. Nf3 {[%clk 0:03:00]}  d5 {[%clk 0:02:15]} 2. e3 {[%clk 0:02:58]}  c5 {[%clk 0:02:12]} 3. b3 {[%clk 0:02:57]}  Nc6 {[%clk 0:02:13]} 4. Bb2 {[%clk 0:02:58]}  Bg4 {[%clk 0:02:05]} 5. Bb5 {[%clk 0:02:57]}  f6 {[%clk 0:02:01]} 6. h3 {[%clk 0:02:55]}  Bh5 {[%clk 0:02:00]} 7. d4 {[%clk 0:02:32]}  e5 {[%clk 0:01:40]} 8. Bxc6+ {[%clk 0:02:21]}  bxc6 {[%clk 0:01:39]} 9. dxe5 {[%clk 0:02:22]}  fxe5 {[%clk 0:01:29]} 10. Bxe5 {[%clk 0:02:19]}  Qe7 {[%clk 0:01:26]} 11. g4 {[%clk 0:02:03]}  Bg6 {[%clk 0:01:09]} 12. c4 {[%clk 0:02:02]}  Be4 {[%clk 0:00:59]} 13. Nbd2 {[%clk 0:01:57]}  d4 {[%clk 0:00:50]} 14. Nxe4 {[%clk 0:01:51]}  dxe3 {[%clk 0:00:48]} 15. Nd6+ {[%clk 0:01:44]}  Kd7 {[%clk 0:00:00]} 16. Nf5+ {[%clk 0:01:42]} 1-0


[Site "https://www.chess.com"]

[Event "Titled Tuesday Blitz August 22 Early 2023"]
[White "Nihal Sarin"]
[Black "Sadhwani, Raunak"]
[WhiteFideId "25092340"]
[BlackFideId "35093487"]
[WhiteElo "3138"]
[BlackElo "3042"]
[Result "1-0"]
[Round "8"]
[TimeControl "180+1"]
[Date "2023.08.22"]
[WhiteClock "0:00:05"]
[BlackClock "0:00:00"]
[Board "1"]

1. d4 {[%clk 0:02:59]}  Nf6 {[%clk 0:03:00]} 2. Nf3 {[%clk 0:02:56]}  d5 {[%clk 0:03:00]} 3. c4 {[%clk 0:02:51]}  e6 {[%clk 0:02:59]} 4. g3 {[%clk 0:02:52]}  Bb4+ {[%clk 0:02:58]} 5. Bd2 {[%clk 0:02:52]}  Be7 {[%clk 0:02:59]} 6. Bg2 {[%clk 0:02:52]}  O-O {[%clk 0:02:59]} 7. O-O {[%clk 0:02:50]}  c6 {[%clk 0:03:00]} 8. Qc2 {[%clk 0:02:45]}  Nbd7 {[%clk 0:02:59]} 9. Rc1 {[%clk 0:02:46]}  Ne4 {[%clk 0:02:44]} 10. Be1 {[%clk 0:02:45]}  b5 {[%clk 0:02:42]} 11. cxd5 {[%clk 0:02:41]}  cxd5 {[%clk 0:02:42]} 12. Nc3 {[%clk 0:02:37]}  Nxc3 {[%clk 0:02:41]} 13. Qxc3 {[%clk 0:02:38]}  a5 {[%clk 0:02:19]} 14. e3 {[%clk 0:02:01]}  b4 {[%clk 0:02:11]} 15. Qc6 {[%clk 0:02:01]}  Ra6 {[%clk 0:02:09]} 16. Qb5 {[%clk 0:01:55]}  Ra7 {[%clk 0:01:59]} 17. Bf1 {[%clk 0:01:53]}  Ba6 {[%clk 0:01:54]} 18. Qc6 {[%clk 0:01:53]}  Bxf1 {[%clk 0:01:36]} 19. Kxf1 {[%clk 0:01:54]}  Qb8 {[%clk 0:01:36]} 20. a3 {[%clk 0:01:46]}  b3 {[%clk 0:01:19]} 21. Qa4 {[%clk 0:01:24]}  Nb6 {[%clk 0:00:55]} 22. Qxb3 {[%clk 0:01:24]}  a4 {[%clk 0:00:56]} 23. Qc2 {[%clk 0:01:11]}  Nc4 {[%clk 0:00:57]} 24. Rab1 {[%clk 0:01:11]}  Rc8 {[%clk 0:00:55]} 25. Kg1 {[%clk 0:01:07]}  Rcc7 {[%clk 0:00:44]} 26. Qd1 {[%clk 0:00:57]}  Rcb7 {[%clk 0:00:22]} 27. Ne5 {[%clk 0:00:57]}  Nxe5 {[%clk 0:00:20]} 28. dxe5 {[%clk 0:00:58]}  h6 {[%clk 0:00:19]} 29. Bc3 {[%clk 0:00:57]}  Rb3 {[%clk 0:00:18]} 30. Bd4 {[%clk 0:00:45]}  Rab7 {[%clk 0:00:18]} 31. Rc6 {[%clk 0:00:46]}  Rc7 {[%clk 0:00:14]} 32. Rbc1 {[%clk 0:00:45]}  Rxc6 {[%clk 0:00:14]} 33. Rxc6 {[%clk 0:00:46]}  g6 {[%clk 0:00:11]} 34. Qc2 {[%clk 0:00:44]}  Qb5 {[%clk 0:00:11]} 35. Rc8+ {[%clk 0:00:38]}  Kg7 {[%clk 0:00:12]} 36. Ra8 {[%clk 0:00:39]}  Qd7 {[%clk 0:00:08]} 37. Ra7 {[%clk 0:00:37]}  Qe8 {[%clk 0:00:05]} 38. Qc7 {[%clk 0:00:37]}  Bf8 {[%clk 0:00:05]} 39. Qa5 {[%clk 0:00:29]}  Rd3 {[%clk 0:00:04]} 40. Qxa4 {[%clk 0:00:29]}  Qc8 {[%clk 0:00:04]} 41. Kg2 {[%clk 0:00:24]}  Rd2 {[%clk 0:00:05]} 42. Ra8 {[%clk 0:00:18]}  Qc1 {[%clk 0:00:03]} 43. Bc3 {[%clk 0:00:09]}  Rd1 {[%clk 0:00:03]} 44. Qe8 {[%clk 0:00:03]}  Rg1+ {[%clk 0:00:03]} 45. Kh3 {[%clk 0:00:03]}  Qf1+ {[%clk 0:00:03]} 46. Kh4 {[%clk 0:00:03]}  g5+ {[%clk 0:00:03]} 47. Kg4 {[%clk 0:00:04]}  Qc4+ {[%clk 0:00:02]} 48. Bd4 {[%clk 0:00:04]}  Qe2+ {[%clk 0:00:00]} 49. f3 {[%clk 0:00:05]} 1-0


[Site "https://www.chess.com"]

[Event "Titled Tuesday Blitz August 22 Early 2023"]
[White "Vachier-Lagrave, Maxime"]
[Black "Kramnik, Vladimir"]
[WhiteFideId "623539"]
[BlackFideId "4101588"]
[WhiteElo "3141"]
[BlackElo "2944"]
[Result "1-0"]
[Round "8"]
[TimeControl "180+1"]
[Date "2023.08.22"]
[WhiteClock "0:00:47"]
[BlackClock "0:00:01"]
[Board "4"]

1. c4 {[%clk 0:02:55]}  e6 {[%clk 0:02:58]} 2. Nf3 {[%clk 0:02:55]}  Nf6 {[%clk 0:02:57]} 3. g3 {[%clk 0:02:55]}  d5 {[%clk 0:02:57]} 4. Bg2 {[%clk 0:02:56]}  Be7 {[%clk 0:02:57]} 5. O-O {[%clk 0:02:56]}  O-O {[%clk 0:02:58]} 6. d4 {[%clk 0:02:56]}  dxc4 {[%clk 0:02:57]} 7. Qc2 {[%clk 0:02:57]}  a6 {[%clk 0:02:57]} 8. a4 {[%clk 0:02:57]}  Bd7 {[%clk 0:02:56]} 9. Qxc4 {[%clk 0:02:57]}  Bc6 {[%clk 0:02:57]} 10. Bg5 {[%clk 0:02:50]}  Nbd7 {[%clk 0:02:56]} 11. Nbd2 {[%clk 0:02:47]}  h6 {[%clk 0:02:54]} 12. Bxf6 {[%clk 0:02:47]}  Nxf6 {[%clk 0:02:53]} 13. Rfc1 {[%clk 0:02:42]}  Rc8 {[%clk 0:02:49]} 14. Qd3 {[%clk 0:02:34]}  Bxf3 {[%clk 0:02:39]} 15. Bxf3 {[%clk 0:02:34]}  c6 {[%clk 0:02:37]} 16. a5 {[%clk 0:02:34]}  Bb4 {[%clk 0:02:32]} 17. Nc4 {[%clk 0:02:32]}  Qe7 {[%clk 0:02:30]} 18. Qb3 {[%clk 0:02:25]}  Rfd8 {[%clk 0:02:17]} 19. e3 {[%clk 0:02:16]}  Rc7 {[%clk 0:02:11]} 20. Ra4 {[%clk 0:02:08]}  c5 {[%clk 0:01:53]} 21. Ne5 {[%clk 0:02:06]}  Rdc8 {[%clk 0:01:31]} 22. Nd3 {[%clk 0:01:47]}  e5 {[%clk 0:00:37]} 23. dxe5 {[%clk 0:01:41]}  Nd7 {[%clk 0:00:37]} 24. e6 {[%clk 0:01:37]}  fxe6 {[%clk 0:00:31]} 25. Bg4 {[%clk 0:01:35]}  Rc6 {[%clk 0:00:29]} 26. Nxb4 {[%clk 0:01:14]}  cxb4 {[%clk 0:00:29]} 27. Bxe6+ {[%clk 0:01:14]}  Kh8 {[%clk 0:00:29]} 28. Rxc6 {[%clk 0:01:14]}  Rxc6 {[%clk 0:00:29]} 29. Bxd7 {[%clk 0:01:12]}  Rc1+ {[%clk 0:00:28]} 30. Kg2 {[%clk 0:01:12]}  Qxd7 {[%clk 0:00:18]} 31. Rxb4 {[%clk 0:01:08]}  Qc6+ {[%clk 0:00:10]} 32. e4 {[%clk 0:01:07]}  Re1 {[%clk 0:00:09]} 33. Rc4 {[%clk 0:00:59]}  Qd7 {[%clk 0:00:06]} 34. Qc2 {[%clk 0:00:48]}  Qe6 {[%clk 0:00:02]} 35. Rc8+ {[%clk 0:00:47]}  Kh7 {[%clk 0:00:03]} 36. e5+ {[%clk 0:00:47]}  Qg6 {[%clk 0:00:01]} 37. Rh8+ {[%clk 0:00:47]} 1-0


[Site "https://www.chess.com"]

[Event "Titled Tuesday Blitz August 22 Early 2023"]
[White "Erigaisi Arjun"]
[Black "Kamsky, Gata"]
[WhiteFideId "35009192"]
[BlackFideId "2000024"]
[WhiteElo "3063"]
[BlackElo "2935"]
[Result "1-0"]
[Round "8"]
[TimeControl "180+1"]
[Date "2023.08.22"]
[WhiteClock "0:00:58"]
[BlackClock "0:00:26"]
[Board "5"]

1. c4 {[%clk 0:03:00]}  e5 {[%clk 0:02:57]} 2. d3 {[%clk 0:03:01]}  Nc6 {[%clk 0:02:56]} 3. Nf3 {[%clk 0:03:00]}  Bc5 {[%clk 0:02:55]} 4. a3 {[%clk 0:02:59]}  a6 {[%clk 0:02:53]} 5. b4 {[%clk 0:02:47]}  Ba7 {[%clk 0:02:53]} 6. Bb2 {[%clk 0:02:48]}  d6 {[%clk 0:02:53]} 7. g3 {[%clk 0:02:47]}  Nf6 {[%clk 0:02:50]} 8. Bg2 {[%clk 0:02:47]}  O-O {[%clk 0:02:41]} 9. O-O {[%clk 0:02:47]}  Bf5 {[%clk 0:02:39]} 10. Nc3 {[%clk 0:02:45]}  Qd7 {[%clk 0:02:38]} 11. Nd2 {[%clk 0:02:37]}  Bh3 {[%clk 0:02:36]} 12. e3 {[%clk 0:02:37]}  Bxg2 {[%clk 0:02:35]} 13. Kxg2 {[%clk 0:02:38]}  d5 {[%clk 0:02:34]} 14. cxd5 {[%clk 0:02:28]}  Nxd5 {[%clk 0:02:34]} 15. Nc4 {[%clk 0:02:25]}  Rad8 {[%clk 0:02:27]} 16. Ne2 {[%clk 0:01:55]}  Qe6 {[%clk 0:02:17]} 17. e4 {[%clk 0:01:47]}  Nde7 {[%clk 0:02:05]} 18. f4 {[%clk 0:01:41]}  f5 {[%clk 0:01:43]} 19. fxe5 {[%clk 0:01:33]}  fxe4 {[%clk 0:01:42]} 20. Rxf8+ {[%clk 0:01:34]}  Rxf8 {[%clk 0:01:40]} 21. Nf4 {[%clk 0:01:35]}  Qf5 {[%clk 0:01:38]} 22. Qb3 {[%clk 0:01:29]}  Kh8 {[%clk 0:01:36]} 23. Rf1 {[%clk 0:01:29]}  g5 {[%clk 0:01:23]} 24. Ng6+ {[%clk 0:01:25]}  hxg6 {[%clk 0:01:03]} 25. Rxf5 {[%clk 0:01:24]}  Nxf5 {[%clk 0:01:03]} 26. e6+ {[%clk 0:01:20]}  Nfd4 {[%clk 0:00:54]} 27. dxe4 {[%clk 0:01:11]}  Kh7 {[%clk 0:00:48]} 28. Qd1 {[%clk 0:01:10]}  Re8 {[%clk 0:00:40]} 29. Qg4 {[%clk 0:01:04]}  Rxe6 {[%clk 0:00:36]} 30. Ne3 {[%clk 0:01:01]}  Ne5 {[%clk 0:00:32]} 31. Qh3+ {[%clk 0:00:59]}  Kg7 {[%clk 0:00:26]} 32. Bxd4 {[%clk 0:00:58]} 1-0


[Site "https://www.chess.com"]

[Event "Titled Tuesday Blitz August 22 Early 2023"]
[White "Dubov, Daniil"]
[Black "Henriquez Villagra, Cristobal"]
[WhiteFideId "24126055"]
[BlackFideId "3409350"]
[WhiteElo "3041"]
[BlackElo "2928"]
[Result "0-1"]
[Round "8"]
[TimeControl "180+1"]
[Date "2023.08.22"]
[WhiteClock "0:00:03"]
[BlackClock "0:00:13"]
[Board "6"]

1. d4 {[%clk 0:03:00]}  d6 {[%clk 0:02:57]} 2. Nf3 {[%clk 0:03:00]}  Nf6 {[%clk 0:02:57]} 3. c4 {[%clk 0:03:01]}  g6 {[%clk 0:02:56]} 4. Nc3 {[%clk 0:03:01]}  Bg7 {[%clk 0:02:57]} 5. Bg5 {[%clk 0:03:01]}  O-O {[%clk 0:02:55]} 6. e3 {[%clk 0:03:01]}  Nbd7 {[%clk 0:02:53]} 7. Be2 {[%clk 0:03:00]}  b6 {[%clk 0:02:53]} 8. O-O {[%clk 0:03:00]}  Bb7 {[%clk 0:02:54]} 9. Qc2 {[%clk 0:03:01]}  h6 {[%clk 0:02:39]} 10. Bh4 {[%clk 0:03:00]}  g5 {[%clk 0:02:39]} 11. Bg3 {[%clk 0:03:01]}  Nh5 {[%clk 0:02:40]} 12. Nxg5 {[%clk 0:02:58]}  hxg5 {[%clk 0:02:34]} 13. Bxh5 {[%clk 0:02:57]}  f5 {[%clk 0:02:33]} 14. d5 {[%clk 0:02:44]}  f4 {[%clk 0:01:28]} 15. exf4 {[%clk 0:02:39]}  gxf4 {[%clk 0:01:29]} 16. Bh4 {[%clk 0:02:38]}  Ne5 {[%clk 0:01:29]} 17. Ne4 {[%clk 0:02:34]}  Bc8 {[%clk 0:01:29]} 18. f3 {[%clk 0:01:39]}  Qd7 {[%clk 0:00:44]} 19. g4 {[%clk 0:01:28]}  fxg3 {[%clk 0:00:41]} 20. hxg3 {[%clk 0:00:56]}  Qf5 {[%clk 0:00:38]} 21. g4 {[%clk 0:00:50]}  Nxf3+ {[%clk 0:00:33]} 22. Kh1 {[%clk 0:00:48]}  Qh7 {[%clk 0:00:29]} 23. Rxf3 {[%clk 0:00:15]}  Rxf3 {[%clk 0:00:27]} 24. Kg2 {[%clk 0:00:13]}  Rf4 {[%clk 0:00:19]} 25. Qe2 {[%clk 0:00:12]}  Qxe4+ {[%clk 0:00:17]} 26. Qxe4 {[%clk 0:00:12]}  Rxe4 {[%clk 0:00:18]} 27. Kf3 {[%clk 0:00:13]}  Rxc4 {[%clk 0:00:14]} 28. Re1 {[%clk 0:00:14]}  Be5 {[%clk 0:00:13]} 29. Bxe7 {[%clk 0:00:13]}  Bd7 {[%clk 0:00:13]} 30. g5 {[%clk 0:00:12]}  Be8 {[%clk 0:00:12]} 31. Bg4 {[%clk 0:00:12]}  Bf7 {[%clk 0:00:13]} 32. Bd7 {[%clk 0:00:06]}  Bxd5+ {[%clk 0:00:12]} 33. Kf2 {[%clk 0:00:06]}  Rf4+ {[%clk 0:00:12]} 34. Kg1 {[%clk 0:00:03]}  Rf7 {[%clk 0:00:13]} 0-1


[Site "https://www.chess.com"]